bitfinex-derivatives/quotes_SOLF0:USTF0_20260226
["timestamp","ask_amount","ask_price","bid_price","bid_amount"]
[1772118128414,5.20459216,86.865,86.797,10.3697]
[1772118128619,5.20459216,86.865,86.797,5.15208043]
[1772118128816,5.20459216,86.889,86.811,5.15208043]
[1772118129018,8.19535806,86.94,86.77,8.19535806]
[1772118129019,5.20459216,86.911,86.856,10.3627]
[1772118129328,5.20459216,86.911,86.831,5.15208043]
[1772118129520,5.20459216,86.909,86.831,5.15208043]
[1772118130022,5.20459216,86.909,86.832,5.15208043]
[1772118130430,5.20459216,86.939,86.851,5.15208043]
[1772118130819,5.20459216,86.939,86.853,5.15208043]
[1772118131829,5.20459216,86.939,86.83,8.19535806]
[1772118131830,5.20459216,86.919,86.831,5.15208043]
[1772118132231,10.3583,86.893,86.831,15.51758043]
[1772118132927,20.7036,86.948,86.772,20.7454]
[1772118132928,10.3596,86.882,86.82,10.3668]
[1772118133132,5.20459216,86.899,86.81,13.34743849]
[1772118133331,5.20459216,86.879,86.79,13.34743849]
[1772118133628,5.20459216,86.879,86.791,5.15208043]
[1772118134223,5.20459216,86.859,86.77,13.34743849]
[1772118134430,5.20459216,86.859,86.771,5.15208043]
[1772118134831,5.20459216,86.839,86.771,5.15208043]
[1772118135425,5.20459216,86.839,86.75,8.19535806]
[1772118135426,5.20459216,86.839,86.75,13.34743849]
[1772118135724,5.20459216,86.838,86.75,5.15208043]
[1772118137029,10.3675,86.816,86.751,10.3752]
[1772118137921,10.3663,86.826,86.76,10.374]
[1772118138123,10.3663,86.826,86.75,5.15208043]
[1772118138124,5.20459216,86.859,86.751,5.15208043]
[1772118138432,5.20459216,86.859,86.771,5.15208043]
[1772118138629,5.20459216,86.859,86.799,10.3694]
[1772118138829,5.20459216,86.859,86.791,5.15208043]
[1772118139029,10.3638,86.847,86.791,5.15208043]
[1772118139430,5.20459216,86.859,86.791,5.15208043]
[1772118140030,10.3626,86.857,86.794,5.15208043]
[1772118140230,5.20459216,86.879,86.794,5.15208043]
[1772118140425,10.3557,86.915,86.862,10.3619]
[1772118140624,10.3557,86.915,86.841,5.15208043]
[1772118140827,5.20459216,86.941,86.841,5.15208043]
[1772118141028,5.20459216,86.941,86.86,8.19535806]
[1772118141227,5.20459216,86.939,86.844,5.15208043]
[1772118141438,5.20459216,86.938,86.844,5.15208043]
[1772118141631,10.3569,86.905,86.844,5.15208043]
[1772118141832,13.39995022,86.92,86.844,5.15208043]
[1772118142037,5.20459216,86.919,86.844,5.15208043]
[1772118142333,5.20459216,86.919,86.825,10.3663]
[1772118142334,10.3588,86.889,86.825,10.3663]
[1772118142527,10.3588,86.889,86.768,20.7463]
[1772118142528,5.20459216,86.899,86.801,5.15208043]
[1772118142726,5.20459216,86.877,86.801,5.15208043]
[1772118143836,10.3618,86.864,86.801,5.15208043]
[1772118144030,5.20459216,86.877,86.801,5.15208043]
[1772118144437,10.3628,86.856,86.801,5.15208043]
[1772118144635,5.20459216,86.877,86.781,5.15208043]
[1772118145233,13.39995022,86.9,86.801,5.15208043]
[1772118145431,5.20459216,86.899,86.801,5.15208043]
[1772118145634,10.3614,86.867,86.802,10.3691]
[1772118146036,10.3624,86.858,86.801,5.15208043]
[1772118146239,4.76111882,86.879,86.801,5.15208043]
[1772118146644,4.76111882,86.879,86.806,4.83949091]
[1772118146941,4.76111882,86.944,86.821,4.83949091]
[1772118147140,4.76111882,86.929,86.821,4.83949091]
[1772118147342,10.3563,86.91,86.845,10.3639]
[1772118147944,10.3563,86.91,86.84,8.19535806]
[1772118147945,10.3573,86.901,86.846,4.83949091]
[1772118148540,4.76111882,86.919,86.846,4.83949091]
[1772118148841,4.76111882,86.919,86.84,8.19535806]
[1772118149242,4.76111882,86.919,86.841,4.83949091]
[1772118150139,10.3549,86.922,86.859,4.83949091]
[1772118150645,10.3559,86.914,86.859,4.83949091]
[1772118151440,10.3568,86.906,86.859,4.83949091]
[1772118151643,10.3568,86.906,86.84,8.19535806]
[1772118151841,10.3568,86.906,86.841,4.83949091]
[1772118152037,171.32852927,86.988,86.864,4.83949091]
[1772118152038,10.3546,86.924,86.864,4.83949091]
[1772118152247,4.76111882,86.94,86.864,4.83949091]
[1772118152545,4.76111882,86.94,86.874,10.3604]
[1772118152740,4.76111882,86.94,86.864,4.83949091]
[1772118152946,4.76111882,86.969,86.881,4.83949091]
[1772118153143,4.76111882,86.969,86.9,8.19535806]
[1772118153346,4.76111882,86.969,86.901,4.83949091]
[1772118153843,8.19535806,86.99,86.901,4.83949091]
[1772118153844,12.95647688,86.99,86.901,4.83949091]
[1772118154037,4.76111882,86.99,86.901,4.83949091]
[1772118154238,4.76111882,86.99,86.921,4.83949091]
[1772118154439,10.3482,86.978,86.921,4.83949091]
[1772118155447,10.3482,86.978,86.922,10.3547]
[1772118155646,10.3482,86.978,86.921,4.83949091]
[1772118156554,4.76111882,86.978,86.899,4.83949091]
[1772118156848,4.76111882,86.969,86.88,8.19535806]
[1772118157039,10.3536,86.933,86.877,4.83949091]
[1772118157447,8.19535806,86.97,86.888,4.83949091]
[1772118157750,4.76111882,86.974,86.888,4.83949091]
[1772118158142,10.3513,86.951,86.888,4.83949091]
[1772118158340,4.87984278,86.959,86.867,4.73792058]
[1772118158645,4.87984278,86.959,86.796,161.3083]
[1772118158646,10.3598,86.88,86.824,4.73792058]
[1772118158948,4.87984278,86.899,86.824,4.73792058]
[1772118159347,10.3589,86.888,86.836,10.3649]
[1772118159847,10.3589,86.888,86.824,4.73792058]
[1772118160044,34.55,86.932,86.8,8.19535806]
[1772118160045,4.87984278,86.879,86.8,12.93327864]
[1772118160542,4.87984278,86.879,86.825,10.3663]
[1772118160749,10.3597,86.881,86.825,10.3663]
[1772118161140,10.3597,86.881,86.801,4.73792058]
[1772118161546,8.19535806,86.9,86.801,4.73792058]
[1772118161547,10.3609,86.871,86.805,10.3686]
[1772118161747,10.3609,86.871,86.806,4.73792058]
[1772118162348,10.3597,86.881,86.819,10.367]
[1772118162552,10.3597,86.881,86.806,4.73792058]
[1772118163148,10.3586,86.891,86.825,4.73792058]
[1772118163940,10.3586,86.891,86.826,10.3661]
[1772118164143,4.87984278,86.879,86.781,4.73792058]
[1772118164552,10.3622,86.86,86.793,10.3702]
[1772118164746,4.87984278,86.879,86.781,4.73792058]
[1772118164951,8.19535806,86.84,86.781,4.73792058]
[1772118165351,10.3657,86.831,86.781,4.73792058]
[1772118165552,8.19535806,86.84,86.781,4.73792058]
[1772118165949,4.87984278,86.839,86.759,4.73792058]
[1772118166442,8.19535806,86.84,86.74,8.19535806]
[1772118166443,4.87984278,86.823,86.74,8.19535806]
[1772118166644,13.37475477,86.84,86.738,4.73792058]
[1772118166645,4.87984278,86.819,86.738,4.73792058]
[1772118167050,10.3694,86.8,86.738,4.73792058]
[1772118167650,10.3707,86.789,86.738,4.73792058]
[1772118167851,4.87984278,86.819,86.738,4.73792058]
[1772118168353,10.3695,86.799,86.738,4.73792058]
[1772118168851,4.87984278,86.799,86.717,4.73792058]
[1772118169247,8.19535806,86.8,86.721,4.73792058]
[1772118169652,8.19535806,86.82,86.745,15.11382058]
[1772118170048,10.3693,86.801,86.745,15.11382058]
[1772118170253,8.19535806,86.82,86.746,4.73792058]
[1772118170450,8.19535806,86.82,86.747,10.3756]
[1772118170851,10.3691,86.802,86.747,10.3756]
[1772118171060,4.87984278,86.799,86.723,4.73792058]
[1772118171460,10.3715,86.783,86.727,10.378]
[1772118171763,4.87984278,86.799,86.727,15.11592058]
[1772118171955,10.37,86.795,86.736,10.3769]
[1772118172161,8.19535806,86.82,86.736,4.73792058]
[1772118172850,4.87984278,86.821,86.736,4.73792058]
[1772118172851,4.87984278,86.821,86.767,10.3733]
[1772118173257,4.87984278,86.821,86.756,4.73792058]
[1772118173560,8.19535806,86.84,86.767,4.73792058]
[1772118173763,4.87984278,86.843,86.767,4.73792058]
[1772118173964,8.19535806,86.86,86.767,4.73792058]
[1772118174158,10.3618,86.864,86.803,10.3689]
[1772118174357,8.19535806,86.88,86.801,4.73792058]
[1772118174565,8.19535806,86.9,86.845,10.3639]
[1772118174863,4.87984278,86.889,86.801,4.73792058]
[1772118175058,8.19535806,86.9,86.8,8.19535806]
[1772118175059,8.19535806,86.9,86.841,10.3643]
[1772118175258,8.19535806,86.9,86.825,4.73792058]
[1772118175259,4.87984278,86.899,86.825,4.73792058]
[1772118175464,4.87984278,86.899,86.803,4.73792058]
[1772118175659,13.37999878,86.9,86.803,4.73792058]
[1772118175660,13.07520084,86.88,86.803,4.73792058]
[1772118175858,10.3605,86.875,86.803,4.73792058]
[1772118176055,4.79834997,86.899,86.803,4.73792058]
[1772118176457,10.3588,86.889,86.803,4.73792058]
[1772118176860,5.18224239,86.89,86.828,10.3659]
[1772118177059,4.79834997,86.899,86.828,10.3659]
[1772118177455,8.19535806,86.92,86.825,4.73904987]
[1772118177665,4.79834997,86.919,86.825,4.73904987]
[1772118177966,10.3572,86.902,86.841,10.3643]
[1772118178161,4.79834997,86.919,86.825,4.73904987]
[1772118178964,10.356,86.913,86.85,10.3633]
[1772118179162,4.79834997,86.919,86.845,4.73904987]
[1772118179360,8.19535806,86.94,86.809,161.284]
[1772118179361,4.79834997,86.939,86.861,4.73904987]
[1772118179557,10.3541,86.928,86.861,4.73904987]
[1772118179962,10.3529,86.938,86.871,10.3608]
[1772118180167,10.3529,86.938,86.861,4.73904987]
[1772118180368,4.79834997,86.929,86.861,4.73904987]
[1772118180669,10.3551,86.92,86.841,4.73904987]
[1772118180864,4.79834997,86.929,86.841,4.73904987]
[1772118181066,4.79834997,86.929,86.861,4.73904987]
[1772118181561,15.15234997,86.929,86.861,4.73904987]
[1772118181759,13.35000143,86.94,86.84,8.17075338]
[1772118181760,4.79834997,86.919,86.84,8.17075338]
[1772118181962,4.79834997,86.919,86.821,4.73904987]
[1772118181963,8.17075338,86.9,86.821,4.73904987]
[1772118182158,8.17075338,86.9,86.82,8.17075338]
[1772118182159,4.79834997,86.917,86.77,4.73904987]
[1772118182363,4.79834997,86.859,86.77,4.73904987]
[1772118182758,8.17075338,86.88,86.781,4.73904987]
[1772118182957,8.17075338,86.86,86.781,4.73904987]
[1772118183165,10.3645,86.841,86.781,4.73904987]
[1772118183360,8.17075338,86.84,86.761,4.73904987]
[1772118183668,10.3656,86.832,86.771,10.3727]
[1772118184671,4.79834997,86.839,86.78,10.3716]
[1772118185376,8.17075338,86.86,86.789,10.3706]
[1772118185772,10.3625,86.858,86.789,10.3706]
[1772118185967,8.17075338,86.86,86.778,10.3719]
[1772118185968,8.17075338,86.84,86.778,10.3719]
[1772118186476,8.17075338,86.84,86.761,4.73904987]
[1772118186477,10.3647,86.839,86.761,4.73904987]
[1772118187067,8.17075338,86.84,86.761,4.73904987]
[1772118187269,10.3636,86.849,86.761,4.73904987]
[1772118187464,4.79834997,86.859,86.761,4.73904987]
[1772118187672,10.3634,86.851,86.761,4.73904987]
[1772118187863,4.79834997,86.859,86.761,4.73904987]
[1772118188971,4.79834997,86.859,86.781,4.73904987]
[1772118189275,4.79834997,86.819,86.734,4.73904987]
[1772118190281,8.17075338,86.8,86.754,10.3747]
[1772118191087,8.17075338,86.8,86.734,4.73904987]
[1772118191684,4.79834997,86.819,86.734,4.73904987]
[1772118191886,8.17075338,86.83,86.734,4.73904987]
[1772118192084,4.79834997,86.829,86.762,10.3738]
[1772118192285,4.79834997,86.829,86.757,4.73904987]
[1772118193286,10.3661,86.827,86.772,10.3726]
[1772118193593,4.79834997,86.829,86.731,4.73904987]
[1772118194386,10.369,86.803,86.731,4.73904987]
[1772118194982,10.369,86.803,86.75,10.3753]
[1772118195587,4.79834997,86.802,86.71,12.90980325]
[1772118195789,4.79834997,86.785,86.71,4.73904987]
[1772118196784,4.79834997,86.769,86.687,4.73904987]
[1772118197092,10.3738,86.763,86.706,10.3805]
[1772118198393,10.3738,86.763,86.687,4.73904987]
[1772118198394,4.79834997,86.763,86.687,4.73904987]
[1772118198991,4.79834997,86.763,86.703,10.3809]
[1772118199396,4.79834997,86.749,86.665,4.73904987]
[1772118199593,8.17075338,86.77,86.68,8.17075338]
[1772118199792,8.17075338,86.77,86.681,4.73904987]
[1772118199989,4.79834997,86.769,86.681,4.73904987]
[1772118200295,10.3747,86.756,86.704,10.3807]
[1772118201493,10.3747,86.756,86.695,10.3819]
[1772118201698,10.3756,86.748,86.695,10.3819]
[1772118202100,10.3776,86.732,86.661,4.73904987]
[1772118202403,8.17075338,86.73,86.661,4.73904987]
[1772118202700,10.3784,86.724,86.662,10.3858]
[1772118203504,10.3784,86.724,86.67,10.3848]
[1772118204903,4.79834997,86.715,86.633,4.73904987]
[1772118205303,4.79834997,86.715,86.595,34.55]
[1772118205304,4.79834997,86.699,86.61,8.17075338]
[1772118205493,8.17075338,86.7,86.611,4.73904987]
[1772118205894,10.3816,86.698,86.643,10.3881]
[1772118206894,4.79834997,86.712,86.632,5.1513094]
[1772118207094,20.7482,86.761,86.632,5.1513094]
[1772118207095,5.02264075,86.733,86.632,5.1513094]
[1772118207303,5.02264075,86.729,86.632,5.1513094]
[1772118207506,5.02264075,86.752,86.671,5.1513094]
[1772118207901,5.02264075,86.752,86.71,10.38]
[1772118208108,10.3736,86.765,86.691,5.1513094]
[1772118208402,5.02264075,86.779,86.691,5.1513094]
[1772118208604,8.17075338,86.8,86.711,5.1513094]
[1772118208802,5.02264075,86.799,86.711,5.1513094]
[1772118208997,10.372,86.778,86.728,10.3779]
[1772118209205,5.02264075,86.799,86.711,5.1513094]
[1772118209909,5.02264075,86.799,86.727,10.378]
[1772118210202,5.02264075,86.799,86.711,5.1513094]
[1772118210601,5.02264075,86.836,86.74,5.1513094]
[1772118210906,5.02264075,86.829,86.74,5.1513094]
[1772118211109,5.02264075,86.819,86.74,5.1513094]
[1772118211299,5.02264075,86.819,86.751,5.1513094]
[1772118211498,5.02264075,86.839,86.751,5.1513094]
[1772118211700,5.02264075,86.839,86.779,10.3717]
[1772118211899,5.02264075,86.839,86.751,5.1513094]
[1772118212108,5.02264075,86.814,86.743,10.3761]
[1772118212304,5.02264075,86.814,86.731,5.1513094]
[1772118212804,10.368,86.812,86.745,10.3759]
[1772118213105,5.02264075,86.799,86.71,8.17075338]
[1772118213299,5.02264075,86.799,86.711,5.1513094]
[1772118213504,5.02264075,86.799,86.659,161.5627]
[1772118213505,5.02264075,86.779,86.69,5.1513094]
[1772118213700,5.02264075,86.759,86.669,5.1513094]
[1772118213907,5.02264075,86.739,86.669,5.1513094]
[1772118215309,5.02264075,86.739,86.671,10.3847]
[1772118215310,10.3769,86.737,86.671,10.3847]
[1772118215510,5.02264075,86.739,86.669,5.1513094]
[1772118216811,8.17075338,86.76,86.671,5.1513094]
[1772118217615,10.3743,86.759,86.671,5.1513094]
[1772118217808,5.02264075,86.761,86.671,5.1513094]
[1772118218208,5.02264075,86.761,86.707,10.3804]
[1772118219012,4.75840684,86.786,86.691,4.90751507]
[1772118219214,4.75840684,86.779,86.691,4.90751507]
[1772118219410,4.75840684,86.744,86.685,10.383]
[1772118219610,4.75840684,86.739,86.651,4.90751507]
[1772118220817,4.75840684,86.739,86.677,10.384]
[1772118221122,4.75840684,86.739,86.651,4.90751507]
[1772118221612,10.3745,86.757,86.671,4.90751507]
[1772118221814,4.75840684,86.756,86.671,4.90751507]
[1772118222411,4.75840684,86.756,86.694,10.382]
[1772118223014,4.75840684,86.756,86.671,4.90751507]
[1772118224912,10.3758,86.747,86.69,10.3824]
[1772118225516,15.13310684,86.756,86.699,10.3814]
[1772118225715,4.75840684,86.756,86.681,4.90751507]
[1772118226620,10.3758,86.746,86.681,4.90751507]
[1772118227023,4.75840684,86.745,86.681,4.90751507]
[1772118227322,4.75840684,86.745,86.66,4.90751507]
[1772118227914,4.75840684,86.732,86.66,4.90751507]
[1772118228321,4.75840684,86.729,86.64,4.90751507]
[1772118228521,4.75840684,86.704,86.649,10.3874]
[1772118229122,10.382,86.695,86.649,10.3874]
[1772118230021,10.382,86.695,86.64,10.3884]
[1772118230225,4.75840684,86.699,86.62,4.90751507]
[1772118230421,4.75840684,86.72,86.63,8.17075338]
[1772118230625,4.75840684,86.72,86.631,4.90751507]
[1772118230815,4.75840684,86.719,86.631,4.90751507]
[1772118232027,4.75840684,86.709,86.631,4.90751507]
[1772118232620,10.3825,86.691,86.631,4.90751507]
[1772118233418,4.75840684,86.709,86.631,4.90751507]
[1772118233618,8.17075338,86.73,86.631,4.90751507]
[1772118233823,4.75840684,86.733,86.631,4.90751507]
[1772118234024,4.75840684,86.729,86.631,4.90751507]
[1772118234622,10.3812,86.701,86.649,10.3874]
[1772118234925,4.75840684,86.709,86.631,4.90751507]
[1772118235323,10.3815,86.699,86.649,10.3874]
[1772118235623,10.3815,86.699,86.631,4.90751507]
[1772118235920,10.3815,86.699,86.648,10.3874]
[1772118236721,10.3829,86.687,86.636,10.3889]
[1772118237121,4.75840684,86.709,86.631,4.90751507]
[1772118237321,10.383,86.686,86.631,4.90751507]
[1772118237525,4.75840684,86.709,86.605,342.41337803]
[1772118237526,5.16448657,86.687,86.605,342.41337803]
[1772118237724,10.3859,86.662,86.607,10.3924]
[1772118238025,5.16448657,86.691,86.608,5.21908583]
[1772118238420,5.16448657,86.689,86.608,5.21908583]
[1772118238816,10.3846,86.673,86.618,10.3911]
[1772118239019,10.3846,86.673,86.605,342.41337803]
[1772118239020,5.16448657,86.679,86.605,342.41337803]
[1772118239219,10.3861,86.66,86.614,10.3915]
[1772118239724,5.16448657,86.679,86.605,342.41337803]
[1772118240524,5.16448657,86.679,86.605,347.63246386]
[1772118240826,10.3847,86.672,86.614,10.3916]
[1772118241022,5.16448657,86.679,86.614,10.3916]
[1772118241223,10.3846,86.673,86.613,10.3917]
[1772118241419,5.16448657,86.679,86.606,5.21908583]
[1772118241728,5.16448657,86.669,86.605,342.41337803]
[1772118242027,10.3874,86.649,86.605,342.41337803]
[1772118242625,5.16448657,86.657,86.605,342.41337803]
[1772118243525,5.16448657,86.704,86.621,5.21908583]
[1772118243724,5.16448657,86.699,86.621,5.21908583]
[1772118243925,10.3847,86.672,86.605,342.41337803]
[1772118244124,5.16448657,86.689,86.621,5.21908583]
[1772118244528,5.16448657,86.689,86.621,15.60978583]
[1772118244529,10.3849,86.671,86.621,15.60978583]
[1772118244733,5.16448657,86.689,86.605,342.41337803]
[1772118245028,5.16448657,86.679,86.605,342.41337803]
[1772118245231,10.3868,86.655,86.605,342.41337803]
[1772118245431,5.16448657,86.679,86.606,5.21908583]
[1772118246124,5.16448657,86.7,86.621,5.21908583]
[1772118246632,5.16448657,86.7,86.658,10.3862]
[1772118246926,5.16448657,86.7,86.641,5.21908583]
[1772118247528,5.16448657,86.699,86.621,5.21908583]
[1772118249035,10.384,86.678,86.622,10.3906]
[1772118249223,5.16448657,86.699,86.605,342.41337803]
[1772118249426,5.16448657,86.679,86.605,342.41337803]
[1772118249623,5.16448657,86.679,86.606,5.21908583]
[1772118249929,5.16448657,86.669,86.605,342.41337803]
[1772118250332,10.3878,86.646,86.605,342.41337803]
[1772118250730,13.41294631,86.64,86.605,182.51126872]
[1772118251028,13.41294631,86.64,86.605,35.15646872]
[1772118251334,13.41294631,86.64,86.605,6.872e-05]
[1772118251924,10.3859,86.662,86.606,40.75593943]
[1772118252127,20.7593,86.715,86.605,6.872e-05]
[1772118252128,8.2202322,86.68,86.605,6.872e-05]
[1772118252331,5.19397028,86.66,86.605,6.872e-05]
[1772118252633,13.41420248,86.66,86.605,6.872e-05]
[1772118253134,10.3897,86.63,86.605,6.872e-05]
[1772118253334,13.41420248,86.66,86.605,6.872e-05]
[1772118253532,10.3887,86.639,86.605,6.872e-05]
[1772118254339,10.3898,86.63,86.605,6.872e-05]
[1772118255135,10.3887,86.638,86.605,6.872e-05]
[1772118255632,8.2202322,86.66,86.605,6.872e-05]
[1772118256437,10.3884,86.641,86.605,6.872e-05]
[1772118257436,8.2202322,86.66,86.605,6.872e-05]
[1772118257437,34.55,86.659,86.605,6.872e-05]
[1772118257632,8.2202322,86.64,86.605,6.872e-05]
[1772118257831,8.2202322,86.64,86.52,40.80096724]
[1772118257832,34.55,86.619,86.52,40.80096724]
[1772118258038,34.55,86.619,86.497,25.8222153]
[1772118258039,8.2202322,86.6,86.527,40.76124796]
[1772118258335,8.2202322,86.62,86.527,40.76124796]
[1772118258537,5.19541413,86.61,86.527,40.76124796]
[1772118259132,8.2202322,86.64,86.561,40.76108042]
[1772118259338,13.41564633,86.62,86.561,40.76108042]
[1772118259739,13.41564633,86.62,86.541,40.76108042]
[1772118260127,10.3949,86.587,86.521,40.91669786]
[1772118260328,13.41564633,86.62,86.521,40.91669786]
[1772118260735,10.3937,86.597,86.543,10.4001]
[1772118261329,8.2202322,86.58,86.521,40.91719615]
[1772118261535,8.2202322,86.6,86.521,40.91719615]
[1772118262040,10.3935,86.599,86.533,10.4013]
[1772118262226,10.3935,86.599,86.521,40.91719615]
[1772118262227,8.2202322,86.6,86.521,40.91719615]
[1772118262428,8.2202322,86.6,86.533,10.4013]
[1772118262938,8.2202322,86.6,86.534,40.89956157]
[1772118263141,10.3935,86.599,86.536,10.4009]
[1772118263527,8.2202322,86.62,86.534,40.89956157]
[1772118263935,23.80918891,86.62,86.534,40.89956157]
[1772118264542,8.2202322,86.62,86.557,40.85522732]
[1772118264837,10.3897,86.63,86.557,40.85522732]
[1772118265235,8.2202322,86.64,86.569,40.85550462]
[1772118265236,23.8065483,86.64,86.569,40.85550462]
[1772118265437,8.2202322,86.64,86.569,40.85550462]
[1772118265836,10.35742783,86.701,86.569,40.85550462]
[1772118265837,10.3872,86.651,86.585,10.395]
[1772118266034,10.3872,86.651,86.56,8.2202322]
[1772118266035,10.3872,86.651,86.586,40.94585133]
[1772118266241,8.2202322,86.66,86.586,40.94585133]
[1772118266636,10.3863,86.658,86.592,10.3942]
[1772118266841,5.19766412,86.67,86.593,40.94585133]
[1772118267145,10.3852,86.668,86.601,51.34021086]
[1772118267332,34.55,86.699,86.602,40.94711086]
[1772118267532,8.2202322,86.68,86.602,40.94711086]
[1772118267735,8.2202322,86.66,86.571,40.94711086]
[1772118268345,10.3864,86.658,86.598,10.3935]
[1772118268745,8.2202322,86.66,86.604,10.3928]
[1772118269241,10.3851,86.669,86.605,40.9505323]
[1772118269544,8.2202322,86.68,86.605,40.9505323]
[1772118269845,18.6040322,86.68,86.613,10.3917]
[1772118270238,8.2202322,86.68,86.613,10.3917]
[1772118270644,8.2202322,86.68,86.605,40.9505323]
[1772118271940,10.3859,86.662,86.607,10.3924]
[1772118272147,10.3859,86.662,86.608,40.95717493]
[1772118272542,10.3878,86.646,86.587,10.3948]
[1772118272736,8.2202322,86.66,86.587,40.95717493]
[1772118273141,5.1937589,86.67,86.604,10.3927]
[1772118273341,8.2202322,86.68,86.605,40.95782075]
[1772118273646,10.384,86.678,86.622,10.3906]
[1772118274041,8.2202322,86.7,86.605,40.95782075]
[1772118274241,10.3835,86.682,86.605,40.95782075]
[1772118274544,13.41429084,86.7,86.605,40.95782075]
[1772118275240,13.41429084,86.7,86.59,8.2202322]
[1772118275241,10.3832,86.685,86.624,40.95996395]
[1772118275449,20.7531,86.74,86.624,40.95996395]
[1772118275637,20.7531,86.74,86.61,8.2202322]
[1772118275638,8.23987437,86.749,86.651,40.95996395]
[1772118275836,8.23987437,86.749,86.65,8.2202322]
[1772118275837,8.24198582,86.768,86.685,40.95996395]
[1772118276040,13.41429084,86.75,86.685,40.95996395]
[1772118276344,13.41429084,86.75,86.65,8.2202322]
[1772118276345,8.24198582,86.786,86.723,10.3785]
[1772118276549,8.24198582,86.786,86.651,161.5773]
[1772118276550,8.2202322,86.77,86.686,40.9544917]
[1772118276848,8.2202322,86.75,86.686,40.9544917]
[1772118277052,10.3773,86.734,86.686,40.9544917]
[1772118278347,10.376,86.745,86.686,40.9544917]
[1772118278743,8.2202322,86.77,86.686,40.9544917]
[1772118279042,13.4128344,86.77,86.686,40.9544917]
[1772118279250,13.4128344,86.77,86.688,40.95184771]
[1772118279446,8.2202322,86.77,86.688,40.95184771]
[1772118280252,8.2202322,86.79,86.698,40.95529523]
[1772118280647,13.40964289,86.79,86.698,40.95529523]
[1772118280949,10.3729,86.771,86.698,40.95529523]
[1772118281252,8.2202322,86.77,86.698,40.95529523]
[1772118281448,13.40964289,86.77,86.698,40.95529523]
[1772118282253,8.2202322,86.79,86.7,40.92159095]
[1772118282755,8.2202322,86.79,86.731,40.92159095]
[1772118283747,10.3705,86.791,86.731,40.92159095]
[1772118283946,8.2202322,86.81,86.731,40.92159095]
[1772118284351,13.40855099,86.83,86.742,40.9196294]
[1772118284752,8.2202322,86.83,86.742,40.9196294]
[1772118285055,5.18831879,86.82,86.754,40.92003516]
[1772118285855,10.3695,86.799,86.754,40.92003516]
[1772118286056,5.18831879,86.82,86.754,40.92003516]
[1772118286362,5.18642925,86.83,86.754,40.92003516]
[1772118286660,5.18642925,86.83,86.7,28.9827322]
[1772118286661,13.40666145,86.83,86.755,40.92024635]
[1772118287461,10.3692,86.801,86.755,40.92024635]
[1772118287862,8.2202322,86.81,86.73,40.89291186]
[1772118288463,13.40666145,86.83,86.73,40.89291186]
[1772118288858,13.40666145,86.83,86.7,8.2202322]
[1772118288859,8.2202322,86.83,86.759,40.89321312]
[1772118289059,8.2202322,86.85,86.759,40.89321312]
[1772118289256,13.4053139,86.85,86.759,40.89321312]
[1772118289863,10.3673,86.818,86.761,40.89321312]
[1772118290059,13.4053139,86.85,86.761,40.89321312]
[1772118290060,8.2202322,86.83,86.761,40.89321312]
[1772118290670,10.3683,86.809,86.761,40.89321312]
[1772118291170,13.4053139,86.83,86.731,40.90334229]
[1772118291367,8.2202322,86.81,86.731,40.90334229]
[1772118292364,8.2202322,86.79,86.731,40.90334229]
[1772118292764,10.3738,86.763,86.731,40.90334229]
[1772118292964,8.2202322,86.79,86.731,40.90334229]
[1772118293167,5.184783,86.78,86.691,40.8972607]
[1772118293463,8.2202322,86.77,86.695,40.8972607]
[1772118294466,8.2202322,86.77,86.696,40.89685261]
[1772118295274,8.2202322,86.75,86.696,40.89685261]
[1772118295869,5.18510854,86.78,86.696,40.89685261]
[1772118296070,8.2202322,86.77,86.696,40.89685261]
[1772118296476,8.2202322,86.75,86.696,40.89685261]
[1772118297270,8.2202322,86.77,86.696,40.89685261]
[1772118298878,8.2202322,86.75,86.696,40.89685261]
[1772118299063,8.2202322,86.75,86.673,40.88639532]
[1772118299264,8.2202322,86.73,86.673,40.88639532]
[1772118299672,10.38,86.711,86.673,40.88639532]
[1772118299969,8.2202322,86.73,86.673,40.88639532]
[1772118300171,8.2202322,86.73,86.63,8.2202322]
[1772118300172,10.382,86.694,86.636,10.3889]
[1772118300371,8.2202322,86.71,86.612,20.7835]
[1772118300567,8.2202322,86.73,86.65,8.2202322]
[1772118300771,8.2202322,86.76,86.65,8.2202322]
[1772118300972,5.18746,86.75,86.65,8.2202322]
[1772118301170,8.2202322,86.74,86.65,8.2202322]
[1772118301365,8.20830343,86.74,86.65,8.20830343]
[1772118301565,8.20830343,86.76,86.67,8.20830343]
[1772118301768,8.20830343,86.8,86.679,161.5265]
[1772118302076,8.20830343,86.8,86.67,161.5421]
[1772118302077,8.20830343,86.8,86.71,8.20830343]
[1772118302274,8.20830343,86.8,86.711,31.77035916]